fUSD/lending_fUSD_20240122
["ID","MTS","AMOUNT","RATE_DAILY","PERIOD"]
[312549594,1705965038196,-3153.4660928,0.00021001,2]
[312549595,1705965038206,-1257.17716721,0.00021001,2]
[312549596,1705965038215,-158.77,0.00021027,2]
[312549597,1705965038224,-176.43,0.00021082,2]
[312549598,1705965038233,-241.48,0.00021119,2]
[312549599,1705965038242,-1518.70500028,0.00021197,2]
[312549600,1705965038252,-2832.47886571,0.00021324,2]
[312549601,1705965038261,-158.32,0.00021334,2]
[312549602,1705965038270,-2089.59,0.00021334,2]
[312549603,1705965038279,-326.0,0.00021444,2]
[312549604,1705965038288,-1113.81,0.00021444,2]
[312549605,1705965038298,-203.45121285,0.00021535,2]
[312549606,1705965038307,-499.99,0.00021535,2]
[312549607,1705965038316,-166.47,0.00021537,2]
[312549608,1705965038325,-42870.1008,0.00021551,2]
[312549609,1705965038334,-1319.5366,0.00021553,2]
[312549610,1705965038343,-156.14,0.00021605,2]
[312549611,1705965038352,-176.43,0.0002163,2]
[312549612,1705965038361,-315.62,0.00021644,2]
[312549613,1705965038370,-14151.28833585,0.00021651,2]
[312549614,1705965038382,-716.13776415,0.00021651,2]
[312549615,1705965038391,-8359.8173,0.00021653,2]
[312549616,1705965038400,-23049.27117532,0.00021751,2]
[312549617,1705965038409,-547.83238875,0.00021753,2]
[312549618,1705965038420,-16227.35859317,0.00021753,2]
[312549619,1705965038429,-767.2821241,0.00021754,2]
[312549620,1705965038438,-524.21526262,0.00021754,2]
[312549621,1705965038447,-6443.37520764,0.00021797,2]
[312549622,1705965038457,-444.21,0.00021802,2]
[312549623,1705965038466,-259.58211804,0.00021859,2]
[312549624,1705965038475,-281.02270767,0.00021859,2]
[312549625,1705965038486,-250.0,0.00021918,2]
[312549626,1705965038496,-236.27,0.00021982,2]
[312549627,1705965038506,-150.0,0.00022,2]
[312549628,1705965038515,-1042.70064617,0.00022,2]
[312549629,1705965038524,-158.77,0.00022016,2]
[312549630,1705965038533,-170.76,0.00022026,2]
[312549631,1705965038542,-781.91204163,0.00022078,2]
[312549632,1705965038551,-167.5730933,0.00022078,2]
[312549633,1705965038560,-155.0,0.0002208,2]
[312549634,1705965038571,-286.48266102,0.0002208,2]
[312549635,1705965038580,-155.0,0.0002208,2]
[312549636,1705965038589,-225.92819816,0.0002208,2]
[312549637,1705965038598,-3141.46220806,0.0002208,2]
[312549638,1705965038607,-155.0,0.0002208,2]
[312549639,1705965038617,-2306.1350303,0.0002208,2]
[312549640,1705965038626,-385.33653084,0.0002208,2]
[312549641,1705965038634,-386.14915667,0.0002208,2]
[312549642,1705965038643,-155.49151411,0.0002208,2]
[312549643,1705965038652,-279.08372278,0.0002208,2]
[312549644,1705965038663,-541.95419636,0.0002208,2]
[312549645,1705965038671,-195.3246737,0.0002208,2]
[312549646,1705965038681,-4024.28875679,0.0002208,2]
[312549647,1705965038690,-475.84102699,0.0002208,2]
[312549648,1705965038699,-336.79805844,0.0002208,2]
[312549649,1705965038710,-528.94869932,0.0002208,2]
[312549650,1705965038719,-400.09694554,0.0002208,2]
[312549651,1705965038728,-1070.43397792,0.0002208,2]
[312549652,1705965038738,-301.31183225,0.0002208,2]
[312549653,1705965038747,-482.12277628,0.0002208,2]
[312549654,1705965038758,-2946.28489302,0.0002208,2]
[312549655,1705965038767,-488.04153412,0.0002208,2]
[312549656,1705965038777,-155.0,0.0002208,2]
[312549657,1705965038786,-406.57210601,0.0002208,2]
[312549658,1705965038796,-509.67148145,0.0002208,2]
[312549659,1705965038805,-155.0,0.0002208,2]
[312549660,1705965038815,-1499.36309637,0.0002208,2]
[312549661,1705965038825,-695.62649038,0.0002208,2]
[312549662,1705965038834,-155.0,0.0002208,2]
[312549664,1705965038844,-155.0,0.0002208,2]
[312549666,1705965038853,-155.0,0.0002208,2]
[312549668,1705965038862,-3803.65898675,0.0002208,2]
[312549670,1705965038871,-171.73093238,0.0002208,2]
[312549672,1705965038881,-4268.7274813,0.0002208,2]
[312549674,1705965038891,-160.11586494,0.0002208,2]
[312549676,1705965038900,-211.09221565,0.0002208,2]
[312549678,1705965038909,-177.58629654,0.0002208,2]
[312549680,1705965038918,-156.90279675,0.0002208,2]
[312549682,1705965038927,-155.0,0.0002208,2]
[312549684,1705965038937,-321.63589353,0.0002208,2]
[312549686,1705965038946,-232.86995282,0.0002208,2]
[312549688,1705965038955,-1719.54666288,0.0002208,2]
[312549690,1705965038964,-1310.59267949,0.0002208,2]
[312549692,1705965038973,-584.24506645,0.0002208,2]
[312549694,1705965038983,-188.14874811,0.0002208,2]
[312549696,1705965038993,-303.52385287,0.0002208,2]
[312549698,1705965039003,-21996.35026187,0.0002208,2]
[312549700,1705965039012,-259.94691923,0.0002208,2]
[312549702,1705965039022,-155.27713894,0.0002208,2]
[312549704,1705965039032,-155.0,0.0002208,2]
[312549706,1705965039041,-242.11277106,0.0002208,2]
[312549708,1705965039050,-2896.88322903,0.00022081,2]
[312549710,1705965039060,-1746.08238576,0.00022081,2]
[312549712,1705965039069,-176.43,0.00022178,2]
[312549714,1705965039080,-781.91204156,0.00022195,2]
[312549716,1705965039090,-3743.91974356,0.00022206,2]
[312549718,1705965039099,-369.05654651,0.00022206,2]
[312549720,1705965039110,-188.46955122,0.00022295,2]
[312549723,1705965039119,-155.0,0.00022303,2]
[312549725,1705965039128,-318.96402389,0.00022303,2]
[312549727,1705965039137,-3007.39007881,0.00022303,2]
[312549728,1705965039147,-369.96545331,0.00022303,2]
[312549730,1705965039156,-400.0,0.00022303,2]
[312549733,1705965039166,-228.31791619,0.00022303,2]
[312549734,1705965039175,-411.36312889,0.00022303,2]
[312549737,1705965039184,-157.79496172,0.00022304,2]
[312549738,1705965039193,-28608.23233436,0.00022305,2]
[312549743,1705965039223,-24540.09356921,0.00022305,2]
[312549745,1705965039234,-827.91845062,0.00022305,2]
[312549747,1705965039245,-2809.7376293,0.00022305,2]
[312549749,1705965039258,-758.36707319,0.00022305,2]
[312549752,1705965039269,-966215.77948923,0.00022305,2]
[312549754,1705965039279,-22606.16256646,0.00022306,2]
[312549756,1705965039288,-2074.93277737,0.00022308,2]
[312549758,1705965039297,-349.62,0.00022309,2]
[312549760,1705965039306,-781.91204156,0.00022313,2]
[312549762,1705965039315,-369.0565465,0.0002238,2]
[312549764,1705965039324,-781.91204156,0.0002243,2]
[312549766,1705965039333,-315.62,0.00022445,2]
[312549768,1705965039342,-781.91204156,0.00022548,2]
[312549770,1705965039351,-369.0565465,0.00022553,2]
[312549772,1705965039359,-781.91204156,0.00022665,2]
[312549774,1705965039369,-176.43,0.00022726,2]
[312549776,1705965039378,-369.0565465,0.00022727,2]
[312549778,1705965039387,-156.14,0.00022731,2]
[312549780,1705965039397,-4785.03700035,0.00022765,2]
[312549782,1705965039406,-2439.8122743,0.00022765,4]
[312549784,1705965039415,-174.31636133,0.00022765,2]
[312549786,1705965039425,-313.84411534,0.00022765,2]
[312549788,1705965039434,-155.2337202,0.00022765,2]
[312549790,1705965039443,-367.80860718,0.00022766,2]
[312549792,1705965039453,-196.41393607,0.00022766,2]
[312549794,1705965039462,-155.0,0.00022766,2]
[312549796,1705965039471,-395.34025327,0.00022768,2]
[312549798,1705965039481,-781.91204156,0.00022783,2]
[312549800,1705965039490,-444.21,0.00022841,2]
[312549802,1705965039502,-155.59197994,0.00022882,2]
[312549804,1705965039511,-6852.7147,0.00022897,2]
[312549806,1705965039520,-7277.3394,0.00022897,2]
[312549808,1705965039529,-304.4792,0.00022897,2]
[312549810,1705965039539,-4433.35262043,0.00022898,2]
[312549812,1705965039548,-4433.35262039,0.00022898,2]
[312549814,1705965039558,-4433.35262039,0.00022899,2]
[312549816,1705965039567,-4433.35262039,0.00022899,2]
[312549818,1705965039576,-4433.35262039,0.000229,2]
[312549820,1705965039586,-296.3931,0.000229,2]
[312549860,1705965039938,-167.57309329,0.000229,2]
[312549862,1705965039949,-781.91204156,0.000229,2]
[312549864,1705965039958,-3702.59151093,0.000229,2]
[312549866,1705965039967,-160.56080585,0.000229,2]
[312549868,1705965039977,-674.76193624,0.000229,2]
[312549870,1705965039986,-674.76193609,0.000229,2]
[312549872,1705965039995,-2337.32303949,0.000229,2]
[312549874,1705965040005,-674.76193609,0.000229,2]
[312549876,1705965040013,-205.4335435,0.000229,6]
[312549878,1705965040023,-674.76193609,0.000229,2]
[312549880,1705965040032,-674.76193609,0.000229,2]
[312549882,1705965040041,-249.19900755,0.000229,2]
[312549884,1705965040050,-674.76193609,0.000229,2]
[312549886,1705965040060,-674.76193609,0.000229,2]
[312549888,1705965040070,-674.76193609,0.000229,2]
[312549890,1705965040080,-369.0565465,0.000229,2]
[312549892,1705965040091,-674.76193609,0.000229,2]
[312549894,1705965040100,-674.76193609,0.000229,2]
[312549896,1705965040109,-4461.75904346,0.000229,2]
[312549898,1705965040119,-674.76193609,0.000229,2]
[312549900,1705965040129,-674.76193609,0.000229,2]
[312549902,1705965040138,-674.76193609,0.000229,2]
[312549904,1705965040147,-4433.35262039,0.000229,2]
[312549907,1705965040157,-6581.42553432,0.00022901,2]
[312549909,1705965040166,-4433.35262039,0.00022901,2]
[312549911,1705965040175,-4433.35262039,0.00022901,2]
[312549913,1705965040184,-4433.35262039,0.00022902,2]
[312549915,1705965040193,-4433.35262039,0.00022902,2]
[312549917,1705965040203,-4433.35262039,0.00022903,2]
[312549919,1705965040212,-4433.35262039,0.00022903,2]
[312549921,1705965040222,-188.46955122,0.0002299,2]
[312549923,1705965040231,-158.2579,0.00022995,2]
[312549925,1705965040240,-257.41602689,0.00022995,2]
[312549927,1705965040251,-978.52916878,0.00022995,2]
[312549929,1705965040261,-155.0,0.00022995,2]
[312549931,1705965040271,-155.0,0.00022995,2]
[312549933,1705965040280,-220.37851532,0.00022995,2]
[312549935,1705965040290,-189.24586024,0.00022996,2]
[312549937,1705965040299,-3749.80829017,0.00022996,2]
[312549939,1705965040308,-2611.83116676,0.00022997,2]
[312549941,1705965040318,-162.2165362,0.00022997,2]
[312549943,1705965040327,-155.0,0.00022997,2]
[312549945,1705965040336,-188.70735692,0.00022997,2]
[312549946,1705965040345,-156.967873,0.00022997,2]
[312549948,1705965040354,-3329.35169132,0.00022997,2]
[312549949,1705965040362,-759.00584575,0.00022997,2]
[312549950,1705965040371,-155.0,0.00022997,2]
[312549951,1705965040380,-155.0,0.00022997,2]
[312549952,1705965040390,-244.84553355,0.00022997,2]
[312549953,1705965040399,-295.34953421,0.00022997,2]
[312549954,1705965040408,-3031.20814747,0.00022997,2]
[312549955,1705965040417,-377.0614235,0.00022997,2]
[312549956,1705965040426,-516.33591536,0.00022997,2]
[312549957,1705965040435,-7103.57322363,0.00022997,5]
[312549958,1705965040444,-155.06110951,0.00022997,2]
[312549960,1705965040454,-155.74477967,0.00022997,2]
[312549961,1705965040463,-302.37969356,0.00022997,2]
[312549962,1705965040473,-215.18715609,0.00022997,2]
[312549964,1705965040484,-155.0,0.00022998,2]
[312549966,1705965040494,-199.32847921,0.00022998,2]
[312549968,1705965040505,-155.000001,0.00022998,2]
[312549970,1705965040513,-651.85793696,0.00022998,2]
[312549972,1705965040523,-354.6810307,0.00022998,2]
[312549974,1705965040532,-25171.15415085,0.00022998,2]
[312549975,1705965040542,-185.56412436,0.00022998,10]
[312549976,1705965040551,-357.35479194,0.00022998,10]
[312549977,1705965040561,-1496.74930404,0.00022999,2]
[312549978,1705965040570,-150.0,0.00022999,2]
[312549979,1705965040580,-176.79248383,0.00022999,2]
[312549980,1705965040590,-150.0,0.00022999,2]
[312549981,1705965040599,-176.79248383,0.00022999,2]
[312549982,1705965040609,-150.0,0.00022999,2]
[312549984,1705965040618,-176.79248383,0.00022999,2]
[312549986,1705965040627,-150.0,0.00022999,2]
[312549988,1705965040637,-176.79248383,0.00022999,2]
[312549990,1705965040646,-150.0,0.00022999,2]
[312549992,1705965040655,-176.79248383,0.00022999,2]
[312549994,1705965040664,-150.0,0.00022999,2]
[312549996,1705965040674,-176.79248383,0.00022999,2]
[312549998,1705965040683,-150.0,0.00022999,2]
[312550000,1705965040692,-176.79248383,0.00022999,2]
[312550001,1705965040702,-150.0,0.00022999,2]
[312550003,1705965040711,-176.79248383,0.00022999,2]
[312550006,1705965040720,-150.0,0.00022999,2]
[312550008,1705965040730,-176.79248383,0.00022999,2]
[312550010,1705965040739,-150.0,0.00022999,2]
[312550012,1705965040748,-176.79248383,0.00022999,2]
[312550014,1705965040759,-150.0,0.00022999,2]
[312550016,1705965040768,-176.79248383,0.00022999,2]
[312550018,1705965040777,-150.0,0.00022999,2]
[312550020,1705965040786,-176.79248383,0.00022999,2]
[312550022,1705965040796,-150.0,0.00022999,2]
[312550024,1705965040805,-176.79248383,0.00022999,2]
[312550026,1705965040814,-150.0,0.00022999,2]
[312550028,1705965040823,-176.79248383,0.00022999,2]
[312550030,1705965040833,-150.0,0.00022999,2]
[312550032,1705965040842,-176.79248383,0.00022999,2]
[312550034,1705965040852,-156.93550965,0.00023,2]
[312550036,1705965040861,-12153822.65921119,0.00023,2]
[312550038,1705965040874,-423809.05788346,0.00023,2]
[312550042,1705965040902,-2301.1932,0.00023,2]
[312550053,1705965041023,-7665.26488816,0.00023,2]
[312550054,1705965041034,-9298.42526999,0.00023,2]
[312550057,1705965041044,-7992.8,0.00023,2]
[312550059,1705965041054,-2301.47842678,0.00023,2]
[312550062,1705965041152,-630.15733632,0.000229,2]
[312550063,1705965041163,-44.60459977,0.000229,2]
[312550064,1705965041171,-1753.50496715,0.00023,2]
[312550065,1705965041189,-1424450.17119551,0.00023,2]
[312550066,1705965041200,-241495.98833628,0.00023,2]
[312550067,1705965041503,-660.04779756,0.00023,2]
[312550068,1705965041613,-53024.02868062,0.00023,2]
[312550069,1705965041625,-1052.875,0.00023,2]
[312550070,1705965041754,-1856.03047518,0.00023,2]
[312550071,1705965041766,-998.37,0.00023,2]
[312550072,1705965041783,-12099.85341873,0.00023,2]
[312550073,1705965041794,-39897.58559371,0.00023,2]
[312550089,1705965043374,-7130.95915713,0.00023,2]
[312550090,1705965043387,-5078.572815,0.00023,2]
[312550091,1705965043459,-297.87035,0.00023,2]
[312550092,1705965043470,-350.20487041,0.00023,2]
[312550093,1705965043483,-26314.63641319,0.00023,2]
[312550094,1705965043515,-674.76193609,0.000229,2]
[312550095,1705965043524,-13056.64149811,0.00023,2]
[312550096,1705965043546,-982.03089986,0.00023,2]
[312550097,1705965043558,-1059.89910014,0.00023,2]
[312550098,1705965043569,-2146.52940682,0.00023,2]
[312550099,1705965043581,-8391.42821865,0.00023,2]
[312550101,1705965046230,-544.65751123,0.00023,2]
[312550102,1705965046242,-6895.33541699,0.00023,2]
[312550103,1705965046253,-261.60174887,0.00023,2]
[312550104,1705965046267,-378.54631567,0.00023,2]
[312550105,1705965046289,-280.27417697,0.00023,2]
[312550106,1705965046301,-379.24221432,0.00023,2]
[312550107,1705965046417,-58444.11353745,0.00023,2]
[312550108,1705965046428,-401.16507316,0.00023,2]
[312550109,1705965046439,-634.42820538,0.00023,2]
[312550110,1705965046477,-17469.95081519,0.00023,2]
[312550111,1705965046488,-8423.45533219,0.00023,2]
[312550112,1705965046501,-6350.98677237,0.00023,2]
[312550113,1705965046514,-21104.70427102,0.00023,2]
[312550114,1705965046525,-1172.762,0.00023,2]
[312550115,1705965046545,-5705.66699413,0.00023,2]
[312550116,1705965053299,349.71323021,0.00020901,2]
[312550117,1705965075588,1303.04694334,0.00020698,2]
[312550118,1705965116986,155.0,0.00021,2]
[312550119,1705965119388,203.45121285,0.00021,2]
[312550120,1705965130176,629.38987952,0.00021,2]
[312550121,1705965132986,155.0,0.00021,2]
[312550122,1705965134022,155.0,0.00021,2]
[312550123,1705965134297,250.51655959,0.00021,2]
[312550124,1705965134707,1853.89068505,0.00021,2]
[312550125,1705965135083,2321.57279613,0.00021,2]
[312550126,1705965139194,260.38917657,0.00021,2]
[312550127,1705965142093,281.43377314,0.00021,2]
[312550128,1705965144175,1044.80909175,0.00021,2]
[312550129,1705965149647,4250.31033921,0.00021,2]
[312550130,1705965151801,291.1882,0.00020901,2]
[312550131,1705965152316,302.49089136,0.00021,2]
[312550132,1705965156479,215.26262203,0.00021,2]
[312550133,1705965157705,199.40820147,0.00021,2]
[312550134,1705965163079,202.83452265,0.00021,2]
[312550135,1705965163903,1257.17716721,0.00021,2]
[312550136,1705965163964,310.42145107,0.00021,2]
[312550137,1705965166063,226.19710433,0.00021,2]
[312550138,1705965166840,652.06705863,0.00021,2]
[312550139,1705965171469,279.3769738,0.00021,2]
[312550140,1705965185823,10533.39495593,0.00021,2]
[312550141,1705965213599,2321.57279613,0.00021,2]
[312550142,1705965237186,272.58,0.00019208,2]
[312550143,1705965347661,176.43,0.00020651,2]
[312550144,1705965358108,500.0,0.00020651,2]
[312550145,1705965366130,250.0,0.00020885,2]
[312550146,1705965377683,169.54,0.00020905,2]
[312550149,1705965457829,518.4,0.00020905,2]
[312550150,1705965475762,235.18,0.00020917,2]
[312550151,1705965603335,521.43,0.00020884,2]
[312550152,1705965664328,150.0,0.00020322,2]
[312550153,1705965665694,150.0,0.0002087,2]
[312550154,1705965674667,275.58,0.00018965,2]
[312550155,1705965721486,23900.0,0.00020857,2]
[312550156,1705965758973,-300.0,0.00021006,2]
[312550157,1705965796270,177.68,0.00020987,2]
[312550158,1705965868420,170.76,0.00020529,2]
[312550159,1705965876798,6443.37520764,0.00021001,2]
[312550166,1705965961031,176.43,0.00020321,2]
[312550167,1705965962315,176.43,0.00020869,2]
[312550169,1705965970000,812.08455662,0.00020321,2]
[312550173,1705966027966,447.65,0.00020702,2]
[312550174,1705966106322,279.62,0.00019178,2]
[312550175,1705966139689,434.52,0.00020958,2]
[312550177,1705966192498,4275.1,0.00020624,2]
[312550210,1705966231654,-442.76851,0.00021001,2]
[312550213,1705966231675,-3147.295251,0.00021001,2]
[312550214,1705966231684,-150.0,0.00021001,2]
[312550215,1705966231693,-2000.0,0.00021002,2]
[312550216,1705966231702,-268.9978855,0.00021006,2]
[312550218,1705966231712,-250.0,0.00021014,2]
[312550219,1705966231722,-326.66664157,0.00021109,2]
[312550220,1705966231731,-326.66664152,0.00021204,2]
[312550221,1705966231741,-157.86,0.0002128,2]
[312550222,1705966231751,-326.66664152,0.00021298,2]
[312550223,1705966231760,-150.0,0.00021318,2]
[312550224,1705966231770,-439.79282916,0.00021319,2]
[312550225,1705966231780,-376.94349572,0.00021319,2]
[312550226,1705966231789,-156.44361902,0.00021319,2]
[312550227,1705966231798,-3634.63830286,0.0002132,2]
[312550228,1705966231808,-499.99,0.0002132,2]
[312550229,1705966231818,-80228.10136486,0.00021321,2]
[312550230,1705966231828,-3325.22,0.00021321,2]
[312550231,1705966231838,-166.64,0.00021321,2]
[312550232,1705966231847,-158.32,0.00021327,2]
[312550233,1705966231856,-326.66664152,0.00021393,2]
[312550234,1705966231865,-176.43,0.00021417,2]
[312550235,1705966231874,-279.50474434,0.00021434,2]
[312550236,1705966231883,-279.62,0.00021442,2]
[312550237,1705966231893,-326.66664152,0.00021487,2]
[312550238,1705966231904,-1728.0692,0.00021553,2]
[312550239,1705966231913,-811.1716,0.00021553,2]
[312550240,1705966231922,-2942.4416,0.00021553,2]
[312550241,1705966231931,-714.7691,0.00021553,2]
[312550242,1705966231941,-326.66664152,0.00021582,2]
[312550243,1705966231951,-186.34,0.00021605,2]
[312550244,1705966231961,-27066.39628564,0.00021641,2]
[312550245,1705966231971,-322.78,0.00021644,2]
[312550246,1705966231983,-3007.39007881,0.00021651,2]
[312550247,1705966231998,-155.0,0.00021651,2]
[312550248,1705966232007,-203.01966538,0.00021651,2]
[312550249,1705966232017,-318.96402389,0.00021651,2]
[312550250,1705966232027,-285.44158953,0.00021651,2]
[312550251,1705966232037,-628.91882568,0.00021651,2]
[312550252,1705966232047,-613.03541879,0.00021651,2]
[312550253,1705966232057,-155.0,0.00021651,2]
[312550254,1705966232067,-250.33049543,0.00021651,2]
[312550255,1705966232078,-260.19540859,0.00021651,2]
[312550256,1705966232090,-1044.05246709,0.00021651,2]
[312550257,1705966232100,-281.25014981,0.00021651,2]
[312550258,1705966232111,-343.0867113,0.00021651,2]
[312550259,1705966232121,-202.68746057,0.00021651,2]
[312550260,1705966232130,-159.24493666,0.00021651,2]
[312550261,1705966232140,-226.03862451,0.00021651,2]
[312550262,1705966232149,-1253.87467686,0.00021651,2]
[312550263,1705966232160,-310.20102455,0.00021651,2]
[312550264,1705966232169,-300.46819139,0.00021651,2]
[312550265,1705966232179,-10525.95794955,0.00021651,2]
[312550266,1705966232190,-1492.27117138,0.00021651,2]
[312550267,1705966232201,-155.38943818,0.00021652,2]
[312550268,1705966232212,-156.7679,0.00021652,2]
[312550269,1705966232221,-4247.28248127,0.00021652,2]
[312550270,1705966232230,-4638.1135,0.00021653,2]
[312550271,1705966232239,-75278.09391151,0.00021653,2]
[312550272,1705966232251,-1495.10991762,0.00021653,2]
[312550273,1705966232263,-2836.02757087,0.00021653,2]
[312550274,1705966232272,-448.8961,0.00021653,2]
[312550275,1705966232282,-942.03550344,0.00021653,2]
[312550276,1705966232293,-937.93475933,0.00021653,2]
[312550277,1705966232305,-767.15134949,0.00021653,2]
[312550278,1705966232332,-1071.35837695,0.00021653,2]
[312550279,1705966232344,-503.15432782,0.00021653,2]
[312550280,1705966232355,-1003.8665897,0.00021653,2]
[312550281,1705966232366,-1062.38997499,0.00021653,2]
[312550282,1705966232381,-830.56421828,0.00021653,2]
[312550283,1705966232390,-186.34,0.00021664,2]
[312550284,1705966232400,-326.66664152,0.00021676,2]
[312550285,1705966232410,-186.34,0.00021723,2]
[312550286,1705966232419,-326.66664152,0.00021771,2]
[312550287,1705966232428,-186.34,0.00021782,2]
[312550288,1705966232437,-186.34,0.00021842,2]
[312550289,1705966232446,-326.66664152,0.00021865,2]
[312550290,1705966232455,-186.34,0.00021901,2]
[312550291,1705966232465,-250.0,0.00021918,2]
[312550292,1705966232474,-326.66664152,0.0002196,2]
[312550293,1705966232483,-186.34,0.0002196,2]
[312550294,1705966232493,-176.43,0.00021965,2]
[312550295,1705966232501,-1042.70064617,0.00022,2]
[312550296,1705966232510,-257.14,0.00022,2]
[312550297,1705966232519,-186.34,0.0002202,2]
[312550298,1705966232528,-177.68,0.00022037,2]
[312550299,1705966232537,-326.66664152,0.00022054,2]
[312550300,1705966232547,-1983.15041826,0.00022077,2]
[312550301,1705966232556,-186.34,0.00022079,2]
[312550302,1705966232565,-157.86,0.00022081,2]
[312550303,1705966232575,-257.14,0.00022137,2]
[312550304,1705966232585,-186.34,0.00022138,2]
[312550305,1705966232595,-10652.106,0.00022169,2]
[312550306,1705966232604,-214.9954,0.00022169,2]
[312550307,1705966232613,-1980.9756,0.00022169,2]
[312550308,1705966232623,-186.34,0.00022197,2]
[312550309,1705966232631,-186.34,0.00022257,2]
[312550310,1705966232640,-257.14,0.00022274,2]
[312550311,1705966232650,-1641.350697,0.00022303,2]
[312550312,1705966232662,-186.34,0.00022316,2]
[312550313,1705966232671,-186.34,0.00022375,2]
[312550314,1705966232680,-510.03,0.00022411,2]
[312550315,1705966232689,-186.34,0.00022434,2]
[312550316,1705966232699,-322.78,0.00022445,2]
[312550317,1705966232708,-167.0230573,0.00022453,2]
[312550318,1705966232717,-274.93580453,0.00022453,2]
[312550319,1705966232727,-1632.64771975,0.00022453,2]
[312550320,1705966232736,-160.87105359,0.00022453,2]
[312550321,1705966232746,-186.34,0.00022494,2]
[312550322,1705966232755,-351.47,0.00022513,2]
[312550323,1705966232765,-150.77564097,0.00022532,2]
[312550324,1705966232775,-50879.77913456,0.00022542,2]
[312550325,1705966232788,-334.50747262,0.00022542,2]
[312550326,1705966232800,-1192.27106909,0.00022542,2]
[312550327,1705966232813,-1071.62439854,0.00022542,2]
[312550328,1705966232825,-416.3775075,0.00022542,2]
[312550329,1705966232837,-1061.32060187,0.00022542,2]
[312550330,1705966232850,-819.09312441,0.00022542,2]
[312550331,1705966232861,-714.69912125,0.00022542,2]
[312550332,1705966232896,-4920.80836614,0.00022542,2]
[312550333,1705966232914,-314.08501124,0.00022542,2]
[312550340,1705966237451,-16038.03651772,0.00022542,2]
[312550341,1705966237464,-66080.3360531,0.00022542,2]
[312550342,1705966237508,-3304.68100494,0.00022542,2]
[312550343,1705966237522,-423809.05788346,0.00022542,2]
[312550344,1705966237680,-331.28497899,0.00022542,2]
[312550345,1705966237694,-506.96103469,0.00022542,2]
[312550346,1705966237705,-269986.90677987,0.00022542,2]
[312550359,1705966239891,-186.34,0.00021605,2]
[312550360,1705966239901,-79480.90579898,0.00022542,2]
[312550362,1705966240610,-8.95056264,0.0002198,2]
[312550367,1705966240642,-177.38943736,0.0002198,2]
[312550369,1705966240652,-186.34,0.00022355,2]
[312550371,1705966240662,-8130.12276322,0.00022542,2]
[312550373,1705966240676,-799.02122007,0.00022542,2]
[312550401,1705966242704,-2459.53667299,0.00022542,2]
[312550402,1705966242731,-13160.682828,0.00022542,2]
[312550409,1705966245391,-260.29229258,0.00022541,2]
[312550410,1705966245400,-1867.28379688,0.00022542,2]
[312550411,1705966245680,-1926.06857977,0.00022542,2]
[312550412,1705966250330,862.33280686,0.00021,2]
[312550413,1705966301816,1303.04694334,0.00020696,2]
[312550414,1705966460458,168.69,0.00020974,2]
[312550415,1705966499384,614.72,0.00020991,2]
[312550416,1705966573561,176.43,0.00020241,2]
[312550417,1705966574886,352.65,0.00020789,2]
[312550418,1705966615054,200.0,0.0002096,2]
[312550419,1705966628150,23900.0,0.00020983,2]
[312550420,1705966690530,295.6,0.00019043,2]
[312550421,1705966691632,250.0,0.0002096,2]
[312550422,1705966719129,2000.0,0.00020925,2]
[312550423,1705966753069,190.31,0.00020759,2]
[312550424,1705966816513,195.7,0.00020714,2]
[312550425,1705966835137,177.68,0.00020748,2]
[312550427,1705966891874,263.51244958,0.00020028,2]
[312550428,1705966898298,4353.18411331,0.00021001,2]
[312550429,1705966898395,155.0,0.00021001,2]
[312550430,1705966905606,2308.67867442,0.00021001,2]
[312550431,1705966906250,228.47561221,0.00021001,2]
[312550432,1705966908482,4639.84031702,0.00021001,2]
[312550433,1705966913133,418.44153932,0.00021001,2]
[312550434,1705966913198,395.48650266,0.00021001,2]